[Event "Titled Tuesday Blitz April 26 Early 2022"]
[White "Hernandez Bermudez, Ulises Eduardo"]
[Black "Wartiovaara, Oliver"]
[WhiteFideId "3902510"]
[BlackFideId "513024"]
[WhiteElo "2056"]
[BlackElo "1971"]
[Result "1-0"]
[Round "07"]
[TimeControl "180+1"]
[Date "2022.04.26"]
[WhiteClock "0:01:28"]
[BlackClock "0:01:26"]

1. e4 {[%clk 0:03:00]}  Nf6 {[%clk 0:03:00]} 2. Nc3 {[%clk 0:02:57]}  d5 {[%clk 0:02:59]} 3. e5 {[%clk 0:02:57]}  Nfd7 {[%clk 0:02:59]} 4. d4 {[%clk 0:02:57]}  c5 {[%clk 0:02:59]} 5. Nxd5 {[%clk 0:02:53]}  e6 {[%clk 0:02:50]} 6. Nc3 {[%clk 0:02:52]}  cxd4 {[%clk 0:02:50]} 7. Qxd4 {[%clk 0:02:50]}  Nc6 {[%clk 0:02:49]} 8. Qd1 {[%clk 0:02:45]}  Ndxe5 {[%clk 0:02:41]} 9. Qxd8+ {[%clk 0:02:44]}  Kxd8 {[%clk 0:02:41]} 10. Bf4 {[%clk 0:02:43]}  Bb4 {[%clk 0:02:39]} 11. O-O-O+ {[%clk 0:02:43]}  Ke7 {[%clk 0:02:39]} 12. Ne4 {[%clk 0:02:39]}  h6 {[%clk 0:02:24]} 13. Nf3 {[%clk 0:02:36]}  Nxf3 {[%clk 0:02:23]} 14. gxf3 {[%clk 0:02:35]}  e5 {[%clk 0:02:22]} 15. Be3 {[%clk 0:02:33]}  f5 {[%clk 0:02:20]} 16. Bc5+ {[%clk 0:02:32]}  Bxc5 {[%clk 0:02:17]} 17. Nxc5 {[%clk 0:02:33]}  b6 {[%clk 0:02:18]} 18. Nd3 {[%clk 0:02:32]}  Be6 {[%clk 0:02:17]} 19. Bg2 {[%clk 0:02:30]}  f4 {[%clk 0:02:15]} 20. Rhe1 {[%clk 0:02:29]}  Kf6 {[%clk 0:02:14]} 21. Bf1 {[%clk 0:02:27]}  Rac8 {[%clk 0:02:09]} 22. Kb1 {[%clk 0:02:24]}  Nd4 {[%clk 0:02:07]} 23. Rxe5 {[%clk 0:02:20]}  Nxf3 {[%clk 0:02:03]} 24. Rxe6+ {[%clk 0:02:16]}  Kxe6 {[%clk 0:02:02]} 25. Bh3+ {[%clk 0:02:16]}  Kf6 {[%clk 0:01:59]} 26. Bxc8 {[%clk 0:02:16]}  Rxc8 {[%clk 0:02:00]} 27. Nxf4 {[%clk 0:02:16]}  g5 {[%clk 0:01:58]} 28. Nd5+ {[%clk 0:02:15]}  Ke5 {[%clk 0:01:56]} 29. Ne3 {[%clk 0:02:14]}  h5 {[%clk 0:01:40]} 30. Rd5+ {[%clk 0:02:10]}  Kf4 {[%clk 0:01:40]} 31. c3 {[%clk 0:02:02]}  h4 {[%clk 0:01:38]} 32. Kc2 {[%clk 0:01:37]}  Rh8 {[%clk 0:01:26]} 33. Kd3 {[%clk 0:01:29]}  Nxh2 {[%clk 0:01:26]} 34. Rf5# {[%clk 0:01:28]} 1-0


[Site "https://www.chess.com"]

[Event "Titled Tuesday Blitz April 26 Early 2022"]
[White "Ibrahimli, Murad"]
[Black "Deac, Bogdan-Daniel"]
[WhiteFideId "13410229"]
[BlackFideId "1226380"]
[WhiteElo "2109"]
[BlackElo "2648"]
[Result "1/2-1/2"]
[Round "07"]
[TimeControl "180+1"]
[Date "2022.04.26"]
[WhiteClock "0:00:17"]
[BlackClock "0:00:09"]

1. d4 {[%clk 0:03:00]}  Nf6 {[%clk 0:03:00]} 2. Nf3 {[%clk 0:03:00]}  d5 {[%clk 0:03:00]} 3. c4 {[%clk 0:03:00]}  e6 {[%clk 0:03:00]} 4. Nc3 {[%clk 0:02:59]}  dxc4 {[%clk 0:03:00]} 5. e4 {[%clk 0:02:57]}  Bb4 {[%clk 0:03:00]} 6. Bxc4 {[%clk 0:02:55]}  Nxe4 {[%clk 0:03:00]} 7. O-O {[%clk 0:02:56]}  Nf6 {[%clk 0:03:00]} 8. Qe2 {[%clk 0:02:55]}  O-O {[%clk 0:02:59]} 9. Bg5 {[%clk 0:02:54]}  Be7 {[%clk 0:02:56]} 10. Rad1 {[%clk 0:02:55]}  Nbd7 {[%clk 0:02:55]} 11. Rd3 {[%clk 0:02:48]}  Nb6 {[%clk 0:02:53]} 12. Bb3 {[%clk 0:02:47]}  Nfd5 {[%clk 0:02:29]} 13. Bc1 {[%clk 0:02:46]}  Nb4 {[%clk 0:02:19]} 14. Re3 {[%clk 0:02:46]}  N6d5 {[%clk 0:02:13]} 15. Re4 {[%clk 0:02:46]}  b6 {[%clk 0:02:08]} 16. Rd1 {[%clk 0:02:36]}  Ba6 {[%clk 0:02:00]} 17. Qd2 {[%clk 0:02:16]}  Bb7 {[%clk 0:01:40]} 18. Rg4 {[%clk 0:02:13]}  Kh8 {[%clk 0:00:19]} 19. Ne5 {[%clk 0:02:11]}  f5 {[%clk 0:00:14]} 20. Rg3 {[%clk 0:02:00]}  Bf6 {[%clk 0:00:13]} 21. a3 {[%clk 0:01:49]}  Nxc3 {[%clk 0:00:11]} 22. bxc3 {[%clk 0:01:48]}  Bxe5 {[%clk 0:00:05]} 23. dxe5 {[%clk 0:01:45]}  Qxd2 {[%clk 0:00:06]} 24. Bxd2 {[%clk 0:01:42]}  Nd5 {[%clk 0:00:06]} 25. c4 {[%clk 0:01:38]}  Ne7 {[%clk 0:00:06]} 26. Bb4 {[%clk 0:01:38]}  Rfe8 {[%clk 0:00:02]} 27. Rd7 {[%clk 0:01:36]}  Ng6 {[%clk 0:00:02]} 28. Rxc7 {[%clk 0:01:34]}  Be4 {[%clk 0:00:03]} 29. h4 {[%clk 0:01:28]}  f4 {[%clk 0:00:03]} 30. Rc3 {[%clk 0:01:08]}  Nxe5 {[%clk 0:00:02]} 31. f3 {[%clk 0:01:03]}  Bf5 {[%clk 0:00:02]} 32. Bd6 {[%clk 0:00:59]}  Nd3 {[%clk 0:00:02]} 33. Bc2 {[%clk 0:00:53]}  Rad8 {[%clk 0:00:02]} 34. Rc6 {[%clk 0:00:48]}  Nc5 {[%clk 0:00:02]} 35. Bxf4 {[%clk 0:00:41]}  Bxc2 {[%clk 0:00:01]} 36. Rxc2 {[%clk 0:00:42]}  Rc8 {[%clk 0:00:02]} 37. Rxc8 {[%clk 0:00:41]}  Rxc8 {[%clk 0:00:03]} 38. Rd2 {[%clk 0:00:41]}  Kg8 {[%clk 0:00:03]} 39. Be5 {[%clk 0:00:38]}  Kf7 {[%clk 0:00:03]} 40. h5 {[%clk 0:00:38]}  h6 {[%clk 0:00:03]} 41. Rd4 {[%clk 0:00:38]}  g5 {[%clk 0:00:03]} 42. Kh2 {[%clk 0:00:24]}  Kf8 {[%clk 0:00:02]} 43. Kg3 {[%clk 0:00:23]}  Kf7 {[%clk 0:00:02]} 44. Kg4 {[%clk 0:00:23]}  Kf8 {[%clk 0:00:03]} 45. f4 {[%clk 0:00:23]}  gxf4 {[%clk 0:00:03]} 46. Rxf4+ {[%clk 0:00:24]}  Ke7 {[%clk 0:00:03]} 47. Bf6+ {[%clk 0:00:21]}  Kd6 {[%clk 0:00:03]} 48. Bh4 {[%clk 0:00:19]}  Rg8+ {[%clk 0:00:03]} 49. Kh3 {[%clk 0:00:19]}  Nd7 {[%clk 0:00:03]} 50. Rd4+ {[%clk 0:00:17]}  Kc6 {[%clk 0:00:03]} 51. Rg4 {[%clk 0:00:12]}  Rxg4 {[%clk 0:00:03]} 52. Kxg4 {[%clk 0:00:13]}  Ne5+ {[%clk 0:00:03]} 53. Kf4 {[%clk 0:00:14]}  Nxc4 {[%clk 0:00:03]} 54. Bf6 {[%clk 0:00:14]}  Nd6 {[%clk 0:00:03]} 55. g4 {[%clk 0:00:13]}  Nf7 {[%clk 0:00:03]} 56. g5 {[%clk 0:00:13]}  hxg5+ {[%clk 0:00:04]} 57. Bxg5 {[%clk 0:00:14]}  Kd5 {[%clk 0:00:04]} 58. h6 {[%clk 0:00:12]}  b5 {[%clk 0:00:04]} 59. h7 {[%clk 0:00:12]}  a5 {[%clk 0:00:05]} 60. Bf6 {[%clk 0:00:12]}  b4 {[%clk 0:00:05]} 61. axb4 {[%clk 0:00:13]}  axb4 {[%clk 0:00:05]} 62. h8=Q {[%clk 0:00:13]}  Nxh8 {[%clk 0:00:05]} 63. Bxh8 {[%clk 0:00:14]}  b3 {[%clk 0:00:05]} 64. Be5 {[%clk 0:00:14]}  Kc4 {[%clk 0:00:06]} 65. Ke4 {[%clk 0:00:15]}  Kb4 {[%clk 0:00:06]} 66. Bb2 {[%clk 0:00:15]}  Kc4 {[%clk 0:00:07]} 67. Ke5 {[%clk 0:00:15]}  Kd3 {[%clk 0:00:07]} 68. Kxe6 {[%clk 0:00:16]}  Kc2 {[%clk 0:00:08]} 69. Be5 {[%clk 0:00:16]}  b2 {[%clk 0:00:09]} 70. Bxb2 {[%clk 0:00:17]} 1/2-1/2


[Site "https://www.chess.com"]

[Event "Titled Tuesday Blitz April 26 Early 2022"]
[White "Jaferian, Koosha"]
[Black "Costachi, Mihnea"]
[WhiteFideId "12507440"]
[BlackFideId "1217518"]
[WhiteElo "2030"]
[BlackElo "2476"]
[Result "0-1"]
[Round "07"]
[TimeControl "180+1"]
[Date "2022.04.26"]
[WhiteClock "0:01:58"]
[BlackClock "0:02:33"]

1. Nf3 {[%clk 0:03:00]}  d5 {[%clk 0:02:58]} 2. b3 {[%clk 0:02:59]}  Bg4 {[%clk 0:02:55]} 3. Bb2 {[%clk 0:03:00]}  Nd7 {[%clk 0:02:54]} 4. d4 {[%clk 0:02:59]}  c6 {[%clk 0:02:54]} 5. e3 {[%clk 0:03:00]}  e6 {[%clk 0:02:55]} 6. Be2 {[%clk 0:03:00]}  f5 {[%clk 0:02:55]} 7. O-O {[%clk 0:03:01]}  Ngf6 {[%clk 0:02:56]} 8. Nbd2 {[%clk 0:03:02]}  Bd6 {[%clk 0:02:56]} 9. c4 {[%clk 0:03:02]}  O-O {[%clk 0:02:56]} 10. Ne5 {[%clk 0:03:03]}  Bxe2 {[%clk 0:02:55]} 11. Qxe2 {[%clk 0:03:04]}  Ne4 {[%clk 0:02:52]} 12. f4 {[%clk 0:02:58]}  Bxe5 {[%clk 0:02:51]} 13. fxe5 {[%clk 0:02:57]}  Qe7 {[%clk 0:02:46]} 14. a4 {[%clk 0:02:53]}  Qb4 {[%clk 0:02:40]} 15. Nxe4 {[%clk 0:02:48]}  fxe4 {[%clk 0:02:41]} 16. Qc2 {[%clk 0:02:34]}  Rxf1+ {[%clk 0:02:38]} 17. Rxf1 {[%clk 0:02:33]}  Rf8 {[%clk 0:02:39]} 18. Rxf8+ {[%clk 0:02:31]}  Kxf8 {[%clk 0:02:34]} 19. cxd5 {[%clk 0:01:58]}  Qe1# {[%clk 0:02:33]} 0-1


[Site "https://www.chess.com"]

[Event "Titled Tuesday Blitz April 26 Early 2022"]
[White "Janaszak, Dawid"]
[Black "Chernomordik, Pavel"]
[WhiteFideId "1119206"]
[BlackFideId "2804530"]
[WhiteElo "2199"]
[BlackElo "2220"]
[Result "0-1"]
[Round "07"]
[TimeControl "180+1"]
[Date "2022.04.26"]
[WhiteClock "0:00:09"]
[BlackClock "0:00:10"]

1. e4 {[%clk 0:03:00]}  g6 {[%clk 0:02:59]} 2. Nc3 {[%clk 0:02:59]}  Bg7 {[%clk 0:02:59]} 3. Bc4 {[%clk 0:02:59]}  e6 {[%clk 0:02:56]} 4. d4 {[%clk 0:02:55]}  Ne7 {[%clk 0:02:56]} 5. Bg5 {[%clk 0:02:55]}  h6 {[%clk 0:02:55]} 6. Bh4 {[%clk 0:02:55]}  g5 {[%clk 0:02:53]} 7. Bg3 {[%clk 0:02:55]}  d5 {[%clk 0:02:53]} 8. exd5 {[%clk 0:02:48]}  exd5 {[%clk 0:02:52]} 9. Bb3 {[%clk 0:02:38]}  c6 {[%clk 0:02:49]} 10. Nf3 {[%clk 0:02:37]}  Nf5 {[%clk 0:02:45]} 11. Be5 {[%clk 0:02:30]}  f6 {[%clk 0:02:44]} 12. Bxb8 {[%clk 0:02:30]}  Rxb8 {[%clk 0:02:43]} 13. O-O {[%clk 0:02:20]}  O-O {[%clk 0:02:33]} 14. Ne2 {[%clk 0:02:15]}  h5 {[%clk 0:02:20]} 15. c3 {[%clk 0:02:07]}  Re8 {[%clk 0:02:00]} 16. Ng3 {[%clk 0:01:58]}  Nxg3 {[%clk 0:01:54]} 17. hxg3 {[%clk 0:01:58]}  Bf5 {[%clk 0:01:49]} 18. Bc2 {[%clk 0:01:59]}  Qd7 {[%clk 0:01:49]} 19. Ne1 {[%clk 0:01:51]}  Bg4 {[%clk 0:01:35]} 20. Qd3 {[%clk 0:01:46]}  Be2 {[%clk 0:01:35]} 21. Qh7+ {[%clk 0:01:46]}  Kf8 {[%clk 0:01:35]} 22. Nd3 {[%clk 0:01:34]}  Bxf1 {[%clk 0:01:25]} 23. Rxf1 {[%clk 0:01:35]}  b6 {[%clk 0:01:17]} 24. Qxh5 {[%clk 0:01:33]}  Qf7 {[%clk 0:01:10]} 25. Qh7 {[%clk 0:01:33]}  Re2 {[%clk 0:01:07]} 26. Bd1 {[%clk 0:01:28]}  Rd2 {[%clk 0:01:06]} 27. Nb4 {[%clk 0:01:20]}  Qe6 {[%clk 0:01:05]} 28. Bc2 {[%clk 0:01:01]}  a5 {[%clk 0:01:00]} 29. Bf5 {[%clk 0:01:00]}  Qe2 {[%clk 0:00:59]} 30. Nxc6 {[%clk 0:00:57]}  Re8 {[%clk 0:00:59]} 31. Ne5 {[%clk 0:00:16]}  fxe5 {[%clk 0:00:53]} 32. Bd7 {[%clk 0:00:16]}  Re7 {[%clk 0:00:42]} 33. Qf5+ {[%clk 0:00:15]}  Rf7 {[%clk 0:00:42]} 34. Qe6 {[%clk 0:00:15]}  Bf6 {[%clk 0:00:39]} 35. Qe8+ {[%clk 0:00:15]}  Kg7 {[%clk 0:00:39]} 36. Be6 {[%clk 0:00:16]}  Rf8 {[%clk 0:00:20]} 37. Qd7+ {[%clk 0:00:16]}  Kh8 {[%clk 0:00:17]} 38. Bf5 {[%clk 0:00:16]}  Qh5 {[%clk 0:00:16]} 39. g4 {[%clk 0:00:15]}  Qh6 {[%clk 0:00:15]} 40. dxe5 {[%clk 0:00:13]}  Bxe5 {[%clk 0:00:14]} 41. g3 {[%clk 0:00:12]}  Bd6 {[%clk 0:00:11]} 42. Qe6 {[%clk 0:00:08]}  Qxe6 {[%clk 0:00:10]} 43. Bxe6 {[%clk 0:00:09]}  Bc5 {[%clk 0:00:10]} 44. Bxd5 {[%clk 0:00:09]}  Rxd5 {[%clk 0:00:10]} 0-1


[Site "https://www.chess.com"]

[Event "Titled Tuesday Blitz April 26 Early 2022"]
[White "Jarocka, Liwia"]
[Black "Zia, Tahsin Tajwar"]
[WhiteFideId "21807558"]
[BlackFideId "10211888"]
[WhiteElo "1896"]
[BlackElo "1800"]
[Result "0-1"]
[Round "07"]
[TimeControl "180+1"]
[Date "2022.04.26"]
[WhiteClock "0:00:19"]
[BlackClock "0:00:38"]

1. e4 {[%clk 0:03:00]}  c6 {[%clk 0:02:58]} 2. d4 {[%clk 0:02:59]}  d5 {[%clk 0:02:58]} 3. Nc3 {[%clk 0:03:00]}  dxe4 {[%clk 0:02:54]} 4. Nxe4 {[%clk 0:03:01]}  Nf6 {[%clk 0:02:55]} 5. Nxf6+ {[%clk 0:03:01]}  gxf6 {[%clk 0:02:55]} 6. c3 {[%clk 0:03:00]}  Qd5 {[%clk 0:02:51]} 7. Nf3 {[%clk 0:02:59]}  Bg4 {[%clk 0:02:49]} 8. Be2 {[%clk 0:02:59]}  Nd7 {[%clk 0:02:44]} 9. Qb3 {[%clk 0:02:58]}  Nb6 {[%clk 0:02:37]} 10. Be3 {[%clk 0:02:56]}  e6 {[%clk 0:02:20]} 11. O-O {[%clk 0:02:54]}  Rg8 {[%clk 0:02:15]} 12. Kh1 {[%clk 0:02:48]}  Bd6 {[%clk 0:02:03]} 13. Qxd5 {[%clk 0:02:46]}  Nxd5 {[%clk 0:01:53]} 14. h3 {[%clk 0:02:43]}  Bf5 {[%clk 0:01:43]} 15. Nh4 {[%clk 0:02:24]}  Be4 {[%clk 0:01:32]} 16. Bf3 {[%clk 0:02:22]}  f5 {[%clk 0:01:24]} 17. Be2 {[%clk 0:01:04]}  Nxe3 {[%clk 0:01:02]} 18. fxe3 {[%clk 0:00:59]}  Rg3 {[%clk 0:01:03]} 19. Nf3 {[%clk 0:00:56]}  O-O-O {[%clk 0:00:58]} 20. Rae1 {[%clk 0:00:47]}  Rdg8 {[%clk 0:00:56]} 21. Rf2 {[%clk 0:00:40]}  f4 {[%clk 0:00:44]} 22. exf4 {[%clk 0:00:27]}  Bxf4 {[%clk 0:00:45]} 23. Bf1 {[%clk 0:00:26]}  f5 {[%clk 0:00:41]} 24. Nd2 {[%clk 0:00:19]}  Rxh3+ {[%clk 0:00:38]} 0-1


[Site "https://www.chess.com"]

[Event "Titled Tuesday Blitz April 26 Early 2022"]
[White "Jobava, Baadur"]
[Black "Alekseenko, Kirill"]
[WhiteFideId "13601520"]
[BlackFideId "4135539"]
[WhiteElo "2617"]
[BlackElo "2682"]
[Result "0-1"]
[Round "07"]
[TimeControl "180+1"]
[Date "2022.04.26"]
[WhiteClock "0:00:22"]
[BlackClock "0:00:22"]

1. e4 {[%clk 0:03:00]}  e5 {[%clk 0:02:59]} 2. Nf3 {[%clk 0:03:00]}  Nc6 {[%clk 0:02:59]} 3. d4 {[%clk 0:03:01]}  exd4 {[%clk 0:02:57]} 4. Nxd4 {[%clk 0:03:02]}  Qf6 {[%clk 0:02:56]} 5. Nxc6 {[%clk 0:02:58]}  Bc5 {[%clk 0:02:51]} 6. Qf3 {[%clk 0:02:58]}  Qxf3 {[%clk 0:02:49]} 7. gxf3 {[%clk 0:02:58]}  bxc6 {[%clk 0:02:46]} 8. Be3 {[%clk 0:02:57]}  Bxe3 {[%clk 0:02:44]} 9. fxe3 {[%clk 0:02:58]}  g6 {[%clk 0:02:32]} 10. h4 {[%clk 0:02:57]}  h5 {[%clk 0:02:28]} 11. Nd2 {[%clk 0:02:57]}  d6 {[%clk 0:02:28]} 12. Bc4 {[%clk 0:02:51]}  Nf6 {[%clk 0:02:27]} 13. Rg1 {[%clk 0:02:48]}  Nd7 {[%clk 0:02:18]} 14. f4 {[%clk 0:02:46]}  Nb6 {[%clk 0:02:17]} 15. Bb3 {[%clk 0:02:45]}  Bg4 {[%clk 0:02:15]} 16. Kf2 {[%clk 0:02:44]}  a5 {[%clk 0:02:15]} 17. a3 {[%clk 0:02:44]}  a4 {[%clk 0:02:09]} 18. Ba2 {[%clk 0:02:43]}  Ra5 {[%clk 0:02:08]} 19. Nf3 {[%clk 0:02:32]}  Bxf3 {[%clk 0:01:39]} 20. Kxf3 {[%clk 0:02:32]}  Ke7 {[%clk 0:01:40]} 21. Rg5 {[%clk 0:02:30]}  Rha8 {[%clk 0:01:39]} 22. Rag1 {[%clk 0:02:24]}  Nd7 {[%clk 0:01:28]} 23. Rxa5 {[%clk 0:02:21]}  Rxa5 {[%clk 0:01:28]} 24. Rg5 {[%clk 0:02:22]}  Nc5 {[%clk 0:01:16]} 25. Bc4 {[%clk 0:02:04]}  Ra8 {[%clk 0:01:15]} 26. c3 {[%clk 0:01:49]}  Rb8 {[%clk 0:01:15]} 27. Rg2 {[%clk 0:01:49]}  Rb6 {[%clk 0:01:15]} 28. f5 {[%clk 0:01:39]}  Kf6 {[%clk 0:01:14]} 29. Kf4 {[%clk 0:01:31]}  Nd7 {[%clk 0:01:13]} 30. fxg6 {[%clk 0:01:23]}  fxg6 {[%clk 0:01:14]} 31. Rd2 {[%clk 0:01:21]}  Ne5 {[%clk 0:01:14]} 32. Be2 {[%clk 0:01:21]}  c5 {[%clk 0:01:04]} 33. Kg3 {[%clk 0:01:16]}  Rb8 {[%clk 0:01:02]} 34. Kf4 {[%clk 0:01:16]}  g5+ {[%clk 0:00:59]} 35. hxg5+ {[%clk 0:01:16]}  Kg6 {[%clk 0:01:00]} 36. Bd1 {[%clk 0:01:06]}  Rf8+ {[%clk 0:00:49]} 37. Kg3 {[%clk 0:01:07]}  Kxg5 {[%clk 0:00:50]} 38. Rh2 {[%clk 0:01:01]}  Ng4 {[%clk 0:00:44]} 39. Rh4 {[%clk 0:00:47]}  Rf1 {[%clk 0:00:39]} 40. Rxh5+ {[%clk 0:00:23]}  Kxh5 {[%clk 0:00:39]} 41. Bxg4+ {[%clk 0:00:24]}  Kg5 {[%clk 0:00:39]} 42. Bd7 {[%clk 0:00:25]}  Rb1 {[%clk 0:00:36]} 43. Bxa4 {[%clk 0:00:25]}  Rxb2 {[%clk 0:00:36]} 44. c4 {[%clk 0:00:24]}  Ra2 {[%clk 0:00:36]} 45. Bc6 {[%clk 0:00:25]}  Rxa3 {[%clk 0:00:36]} 46. Kf3 {[%clk 0:00:26]}  Rc3 {[%clk 0:00:35]} 47. Bd5 {[%clk 0:00:25]}  Kf6 {[%clk 0:00:33]} 48. Kf4 {[%clk 0:00:26]}  Rc2 {[%clk 0:00:34]} 49. e5+ {[%clk 0:00:23]}  dxe5+ {[%clk 0:00:34]} 50. Ke4 {[%clk 0:00:24]}  Rc3 {[%clk 0:00:30]} 51. Bg8 {[%clk 0:00:23]}  c6 {[%clk 0:00:30]} 52. Kf3 {[%clk 0:00:22]}  Kf5 {[%clk 0:00:25]} 53. Bh7+ {[%clk 0:00:23]}  Kg5 {[%clk 0:00:26]} 54. Bg8 {[%clk 0:00:23]}  Ra3 {[%clk 0:00:24]} 55. Ke4 {[%clk 0:00:24]}  Kf6 {[%clk 0:00:25]} 56. Kf3 {[%clk 0:00:23]}  Ra7 {[%clk 0:00:23]} 57. Ke4 {[%clk 0:00:22]}  Rg7 {[%clk 0:00:22]} 0-1


[Site "https://www.chess.com"]

[Event "Titled Tuesday Blitz April 26 Early 2022"]
[White "Jumabayev, Rinat"]
[Black "Jaracz, Pawel"]
[WhiteFideId "13702661"]
[BlackFideId "1102222"]
[WhiteElo "2561"]
[BlackElo "2429"]
[Result "1/2-1/2"]
[Round "07"]
[TimeControl "180+1"]
[Date "2022.04.26"]
[WhiteClock "0:00:03"]
[BlackClock "0:00:02"]

1. d4 {[%clk 0:03:00]}  Nf6 {[%clk 0:02:59]} 2. c4 {[%clk 0:03:01]}  e6 {[%clk 0:02:59]} 3. Nf3 {[%clk 0:03:01]}  Bb4+ {[%clk 0:02:57]} 4. Bd2 {[%clk 0:03:01]}  Be7 {[%clk 0:02:48]} 5. Nc3 {[%clk 0:02:59]}  d5 {[%clk 0:02:48]} 6. g3 {[%clk 0:02:50]}  Nbd7 {[%clk 0:02:46]} 7. Qb3 {[%clk 0:02:49]}  Nb6 {[%clk 0:02:44]} 8. c5 {[%clk 0:02:30]}  Nc4 {[%clk 0:02:41]} 9. Bf4 {[%clk 0:02:30]}  O-O {[%clk 0:02:22]} 10. e3 {[%clk 0:02:22]}  b6 {[%clk 0:02:18]} 11. c6 {[%clk 0:02:11]}  a5 {[%clk 0:02:08]} 12. Bxc4 {[%clk 0:01:38]}  dxc4 {[%clk 0:02:07]} 13. Qxc4 {[%clk 0:01:39]}  Ba6 {[%clk 0:02:04]} 14. Nb5 {[%clk 0:01:38]}  Bb4+ {[%clk 0:02:00]} 15. Ke2 {[%clk 0:01:27]}  Ne4 {[%clk 0:01:30]} 16. a4 {[%clk 0:01:11]}  g5 {[%clk 0:01:18]} 17. Be5 {[%clk 0:00:59]}  g4 {[%clk 0:01:10]} 18. Nh4 {[%clk 0:00:52]}  Nd2 {[%clk 0:01:00]} 19. Qd3 {[%clk 0:00:46]}  f6 {[%clk 0:01:00]} 20. Bf4 {[%clk 0:00:46]}  e5 {[%clk 0:00:57]} 21. Rhd1 {[%clk 0:00:17]}  exf4 {[%clk 0:00:51]} 22. Rxd2 {[%clk 0:00:16]}  Bxd2 {[%clk 0:00:48]} 23. Kxd2 {[%clk 0:00:17]}  fxe3+ {[%clk 0:00:47]} 24. fxe3 {[%clk 0:00:18]}  Qd5 {[%clk 0:00:42]} 25. Rc1 {[%clk 0:00:19]}  Bxb5 {[%clk 0:00:36]} 26. axb5 {[%clk 0:00:13]}  a4 {[%clk 0:00:36]} 27. e4 {[%clk 0:00:12]}  Qe6 {[%clk 0:00:30]} 28. Nf5 {[%clk 0:00:11]}  a3 {[%clk 0:00:29]} 29. bxa3 {[%clk 0:00:06]}  Ra4 {[%clk 0:00:29]} 30. Ke3 {[%clk 0:00:04]}  Re8 {[%clk 0:00:26]} 31. Kf4 {[%clk 0:00:04]}  Qa2 {[%clk 0:00:24]} 32. Kxg4 {[%clk 0:00:04]}  Qxh2 {[%clk 0:00:17]} 33. Qb3+ {[%clk 0:00:03]}  Kh8 {[%clk 0:00:16]} 34. Re1 {[%clk 0:00:02]}  Rg8+ {[%clk 0:00:10]} 35. Kf3 {[%clk 0:00:02]}  Rga8 {[%clk 0:00:09]} 36. Re3 {[%clk 0:00:02]}  Qh1+ {[%clk 0:00:08]} 37. Kf4 {[%clk 0:00:01]}  h5 {[%clk 0:00:07]} 38. Rf3 {[%clk 0:00:02]}  Rxa3 {[%clk 0:00:07]} 39. Qxa3 {[%clk 0:00:02]}  Rxa3 {[%clk 0:00:07]} 40. Rxa3 {[%clk 0:00:03]}  Qc1+ {[%clk 0:00:06]} 41. Re3 {[%clk 0:00:03]}  Qf1+ {[%clk 0:00:06]} 42. Rf3 {[%clk 0:00:04]}  Qxb5 {[%clk 0:00:07]} 43. d5 {[%clk 0:00:04]}  Qb2 {[%clk 0:00:07]} 44. Ke3 {[%clk 0:00:04]}  b5 {[%clk 0:00:06]} 45. Rf2 {[%clk 0:00:04]}  Qe5 {[%clk 0:00:05]} 46. Rh2 {[%clk 0:00:04]}  Kg8 {[%clk 0:00:03]} 47. Rxh5 {[%clk 0:00:03]}  Qc3+ {[%clk 0:00:03]} 48. Kf4 {[%clk 0:00:04]}  Qd2+ {[%clk 0:00:03]} 49. Kf3 {[%clk 0:00:04]}  Qd1+ {[%clk 0:00:03]} 50. Ke3 {[%clk 0:00:04]}  Qxh5 {[%clk 0:00:04]} 51. d6 {[%clk 0:00:04]}  Qg5+ {[%clk 0:00:04]} 52. Ke2 {[%clk 0:00:04]}  cxd6 {[%clk 0:00:05]} 53. c7 {[%clk 0:00:04]}  Qh5+ {[%clk 0:00:04]} 54. Ke3 {[%clk 0:00:04]}  Qe8 {[%clk 0:00:03]} 55. c8=Q {[%clk 0:00:04]}  Qxc8 {[%clk 0:00:03]} 56. Ne7+ {[%clk 0:00:04]}  Kf7 {[%clk 0:00:02]} 57. Nxc8 {[%clk 0:00:05]}  Ke6 {[%clk 0:00:03]} 58. Nb6 {[%clk 0:00:05]}  b4 {[%clk 0:00:03]} 59. Kd4 {[%clk 0:00:05]}  b3 {[%clk 0:00:03]} 60. Nc4 {[%clk 0:00:06]}  f5 {[%clk 0:00:03]} 61. exf5+ {[%clk 0:00:03]}  Kxf5 {[%clk 0:00:03]} 62. Kc3 {[%clk 0:00:02]}  Kg4 {[%clk 0:00:03]} 63. Nxd6 {[%clk 0:00:02]}  b2 {[%clk 0:00:02]} 64. Kb3 {[%clk 0:00:03]}  Kxg3 {[%clk 0:00:02]} 65. Kxb2 {[%clk 0:00:03]} 1/2-1/2


[Site "https://www.chess.com"]

[Event "Titled Tuesday Blitz April 26 Early 2022"]
[White "Kadam, Om Manish"]
[Black "Bristy, Mukherjee"]
[WhiteFideId "45076294"]
[BlackFideId "25077325"]
[WhiteElo "1729"]
[BlackElo "1661"]
[Result "0-1"]
[Round "07"]
[TimeControl "180+1"]
[Date "2022.04.26"]
[WhiteClock "0:01:42"]
[BlackClock "0:00:05"]

1. e4 {[%clk 0:03:00]}  g6 {[%clk 0:02:54]} 2. d4 {[%clk 0:02:59]}  Bg7 {[%clk 0:02:54]} 3. Nf3 {[%clk 0:02:59]}  c5 {[%clk 0:02:54]} 4. dxc5 {[%clk 0:02:59]}  Qa5+ {[%clk 0:02:54]} 5. c3 {[%clk 0:02:59]}  Qxc5 {[%clk 0:02:53]} 6. Be3 {[%clk 0:02:59]}  Qa5 {[%clk 0:02:53]} 7. Nbd2 {[%clk 0:02:59]}  d6 {[%clk 0:02:53]} 8. Bc4 {[%clk 0:02:59]}  Nc6 {[%clk 0:02:50]} 9. O-O {[%clk 0:02:58]}  Nf6 {[%clk 0:02:49]} 10. h3 {[%clk 0:02:57]}  O-O {[%clk 0:02:49]} 11. Qe2 {[%clk 0:02:53]}  h6 {[%clk 0:02:48]} 12. Rfe1 {[%clk 0:02:49]}  Ne5 {[%clk 0:02:44]} 13. Nxe5 {[%clk 0:02:49]}  Qxe5 {[%clk 0:02:43]} 14. Bd4 {[%clk 0:02:48]}  Qa5 {[%clk 0:02:42]} 15. e5 {[%clk 0:02:48]}  dxe5 {[%clk 0:02:41]} 16. Bxe5 {[%clk 0:02:49]}  Kh7 {[%clk 0:02:35]} 17. Nf3 {[%clk 0:02:47]}  Bf5 {[%clk 0:02:30]} 18. Nd4 {[%clk 0:02:45]}  Bd7 {[%clk 0:02:25]} 19. Rad1 {[%clk 0:02:44]}  Ba4 {[%clk 0:02:18]} 20. Rd2 {[%clk 0:02:40]}  Rac8 {[%clk 0:02:15]} 21. Nb3 {[%clk 0:02:29]}  Bxb3 {[%clk 0:02:05]} 22. Bxb3 {[%clk 0:02:30]}  e6 {[%clk 0:02:02]} 23. Red1 {[%clk 0:02:27]}  Rfd8 {[%clk 0:01:59]} 24. Bxf6 {[%clk 0:02:21]}  Bxf6 {[%clk 0:01:58]} 25. Bxe6 {[%clk 0:02:21]}  Rxd2 {[%clk 0:01:07]} 26. Rxd2 {[%clk 0:02:19]}  Re8 {[%clk 0:01:03]} 27. Rd7 {[%clk 0:02:05]}  Re7 {[%clk 0:00:42]} 28. Rxe7 {[%clk 0:02:03]}  Bxe7 {[%clk 0:00:43]} 29. Bxf7 {[%clk 0:02:04]}  Qd8 {[%clk 0:00:41]} 30. Qe4 {[%clk 0:02:00]}  Qd1+ {[%clk 0:00:33]} 31. Kh2 {[%clk 0:02:00]}  Qd6+ {[%clk 0:00:33]} 32. g3 {[%clk 0:01:58]}  Qf6 {[%clk 0:00:31]} 33. Bxg6+ {[%clk 0:01:57]}  Kh8 {[%clk 0:00:17]} 34. Bf5 {[%clk 0:01:57]}  b6 {[%clk 0:00:16]} 35. Kg2 {[%clk 0:01:56]}  Bc5 {[%clk 0:00:15]} 36. b4 {[%clk 0:01:55]}  Bf8 {[%clk 0:00:12]} 37. Qd3 {[%clk 0:01:55]}  Qc6+ {[%clk 0:00:10]} 38. Be4 {[%clk 0:01:55]}  Qf6 {[%clk 0:00:10]} 39. c4 {[%clk 0:01:55]}  Bxb4 {[%clk 0:00:09]} 40. f4 {[%clk 0:01:52]}  Qb2+ {[%clk 0:00:08]} 41. Kf3 {[%clk 0:01:53]}  Qxa2 {[%clk 0:00:08]} 42. Qd8+ {[%clk 0:01:52]}  Kg7 {[%clk 0:00:07]} 43. Qd7+ {[%clk 0:01:53]}  Kf8 {[%clk 0:00:07]} 44. Bd5 {[%clk 0:01:53]}  Qb3+ {[%clk 0:00:06]} 45. Kg4 {[%clk 0:01:53]}  Qd1+ {[%clk 0:00:07]} 46. Kf5 {[%clk 0:01:47]}  Qd3+ {[%clk 0:00:06]} 47. Kf6 {[%clk 0:01:44]}  Bc3+ {[%clk 0:00:05]} 48. Ke6 {[%clk 0:01:42]}  Qg6# {[%clk 0:00:05]} 0-1


[Site "https://www.chess.com"]